Cogmind - Beta 13 @@@ ROGUE MODE // 2024.05.27 @ 22:15:33 Player: H3-RMN Result: Destroyed by KN-1JE(R) with Subdweller Machine Gun Performance ------------- Evolutions (0) 0 Regions Visited (2) 400 Robots Destroyed (48) 240 Value Destroyed (1294) 1294 Prototype IDs (3) 60 Alien Tech Used (0) 0 Bonus (0) 0 TOTAL SCORE: 1994 Bonus ------- None Cogmind --------- Core Integrity 0/250 Matter 300/300 Energy 77/200 System Corruption 1% Temperature Cool (68) Movement Core (1700) Ox33 Location -10/Subcaves Parts ------- > --- POWER (1) -------- Subdweller Power Source > --- PROPULSION (2) --- Subdweller Monowheel > --- UTILITY (2) ------ Huge Storage Unit Light Armor Plating > --- WEAPON (2) ------- Subdweller Laser Subdweller Beam Cannon > --- INVENTORY (25) --- Backup Power I Wheel Wheel Medium Storage Unit Large Storage Unit High-capacity Storage Unit Structural Scanner Improved Terrain Scanner Transport Network Coupler Scrap Shield Hacking Suite Beam Cannon Light Assault Rifle Light Assault Rifle Light Assault Rifle Subdweller Machine Gun Light Cannon Light Cannon Grenade Launcher Subdweller Shrapnel Launcher Datajack Multitool Ripper Piercing Trap Peak State ------------ > --- POWER ------------ Subdweller Power Source > --- PROPULSION ------- Light Treads Subdweller Monowheel > --- UTILITY ---------- Huge Storage Unit Light Armor Plating > --- WEAPON ----------- Subdweller Beam Cannon Ripper > --- INVENTORY -------- Ion Engine Backup Power I Wheel Wheel Subdweller Monowheel Medium Storage Unit Large Storage Unit High-capacity Storage Unit Structural Scanner Improved Terrain Scanner Transport Network Coupler Light Armor Plating Light Armor Plating Scrap Shield Hacking Suite EM Pulse Gun Beam Cannon Light Assault Rifle Light Assault Rifle Light Assault Rifle Light Cannon Light Cannon Grenade Launcher Datajack [Rating: 16] Favorites ----------- Power Ion Engine Engine Ion Engine Propulsion Light Treads Treads Light Treads Wheel Wheel Utility Huge Storage Unit Device Improved Terrain Scanner Storage Huge Storage Unit Protection Light Armor Plating Weapon Light Assault Rifle Energy Gun Small Laser Energy Cannon Subdweller Beam Cannon Ballistic Gun Light Assault Rifle Ballistic Cannon Light Cannon Launcher Grenade Launcher Slashing Weapon Ripper Build | -11 -10 -10 ------- Run | Yrd Mat Sub Slots Evolved . | . . . Power . | . . . Propulsion . | . . . Utility . | . . . Weapon . | . . . Parts Attached 51 | 7 17 27 Power 3 | 1 1 1 Engine 3 | 1 1 1 Core . | . . . Reactor . | . . . Propulsion 13 | 2 2 9 Treads 3 | 1 . 2 Leg . | . . . Wheel 10 | 1 2 7 Hover . | . . . Flight . | . . . Utility 8 | 2 4 2 Device 1 | 1 . . Storage 3 | 1 2 . Processor . | . . . Hackware . | . . . Protection 4 | . 2 2 Artifact . | . . . Weapon 27 | 2 10 15 Energy Gun 4 | . 1 3 Energy Cannon 2 | . . 2 Ballistic Gun 10 | 2 5 3 Ballistic Cannon 5 | . 2 3 Launcher 4 | . 2 2 Special Weapon . | . . . Impact Weapon . | . . . Slashing Weapon 2 | . . 2 Piercing Weapon . | . . . Special Melee Weapon . | . . . Unidentified Prototypes . | . . . Parts Lost 9 | . 1 8 Power . | . . . Propulsion 5 | . 1 4 Utility 2 | . . 2 Weapon 2 | . . 2 Highest Loss Streak 2 | . 1 2 To Critical Strikes . | . . . Average Slot Usage (%) 99 | . 98 99 Engine 13 | . 13 14 Treads 13 | . 14 13 Wheel 13 | . 13 13 Device 2 | . 4 . Storage 14 | . 14 14 Protection 11 | . 9 13 Energy Gun 3 | . 4 3 Energy Cannon 1 | . . 2 Ballistic Gun 11 | . 18 7 Ballistic Cannon 8 | . 5 10 Slashing Weapon 2 | . . 4 Naked Turns . | . . . Heaviest Build 100 | 13 92 100 Greatest Support 20 | 10 10 20 Greatest Overweight (x) 9 | 1 9 9 Average Overweight (x) 5 | . 7 5 Largest Inventory Capacity 25 | 8 25 25 Average Capacity 24 | 7 24 25 Most Carried 25 | 4 25 25 Average Carried 19 | 3 15 22 Final Capacity 25 | 8 25 25 Final Carried 25 | 4 25 25 Class Distribution -------------------- 100% | Mutant Dominant Class ---------------- Mutant | -10/Materials Mutant | -10/Subcaves Resources | -11 -10 -10 ----------- Run | Yrd Mat Sub Matter Collected 1214 | 289 351 574 Remotely . | . . . Salvage Created 1556 | 113 820 623 Parts 111 | 3 61 47 Haulers Intercepted 2 | . 2 . Recyclers Shooed . | . . . Parts Field Recycled . | . . . Retrieved Matter . | . . . Parts Self-Destructed 16 | . . 16 Prevented . | . . . Kills | -11 -10 -10 ------- Run | Yrd Mat Sub Combat Hostiles Destroyed 36 | . 18 18 Melee 3 | . . 3 Guns 9 | . 6 3 Cannons 12 | . 6 6 AOE 12 | . 6 6 Classes Destroyed 12 | 2 7 3 Builder 1 | . 1 . Tunneler 3 | 2 1 . Hauler 2 | . 2 . Recycler 1 | 1 . . Mechanic 1 | . 1 . Operator 3 | . 3 . Watcher 1 | . 1 . Swarmer 7 | . 3 4 Grunt 15 | . 15 . Sentry 1 | . . 1 Artisan 1 | . . 1 Subdweller 13 | . . 13 Best Kill Streak 4 | 3 3 4 Combat Bots Only 4 | . 3 4 Max Kills in Single Turn 2 | 1 2 2 Gunslinging . | . . . Exploded 2 | . 2 2 Melee 1 | . . 1 Uniques/NPCs Destroyed . | . . . Combat | -11 -10 -10 -------- Run | Yrd Mat Sub Hostile Shots Fired 139 | . 54 85 Missed 32 | . 8 24 Damage Taken 1757 | . 544 1213 Core 253 | . 87 166 Absorbed by Shields . | . . . Core Remaining (%) 100 | 100 . . Volleys Fired 158 | 14 60 84 Largest 2 | 2 2 2 Hottest 140 | 40 70 140 Shots Fired 299 | 28 116 155 Gun 206 | 28 84 94 Cannon 79 | . 28 51 Launcher 14 | . 4 10 Special . | . . . Kinetic 196 | 28 93 75 Thermal 62 | . 19 43 Explosive 14 | . 4 10 Electromagnetic 27 | . . 27 Robot Hit Streak 19 | 7 19 11 Robot Miss Streak 4 | 1 2 4 Penetration Max . | . . . Secondary Targets . | . . . Shots Hit Robots 211 | 20 82 109 Core Hits 90 | 7 46 37 Critical Kills . | . . . Critical Parts Destroyed 1 | . 1 . Critical Strikes 5 | . 2 3 Destroy 2 | . 1 1 Blast 2 | . 1 1 Sever 1 | . . 1 Melee Attacks 39 | . . 39 Impact . | . . . Slashing 39 | . . 39 Piercing . | . . . Sneak Attacks . | . . . Combat Hostiles . | . . . Follow-up Attacks . | . . . Damage Inflicted 3561 | 162 1227 2172 Guns 1365 | 162 598 605 Cannons 858 | . 251 607 Explosions 1088 | . 378 710 Melee 250 | . . 250 Ramming . | . . . Kinetic 1363 | 162 671 530 Thermal 673 | . 178 495 Explosive 1088 | . 378 710 Electromagnetic 187 | . . 187 Impact . | . . . Slashing 250 | . . 250 Piercing . | . . . Highest Corruption 1 | . 1 1 Average Corruption 1 | . 1 1 Corruption Purged . | . . . Corruption Blocked . | . . . Effects 18 | . 4 14 Message Errors 4 | . . 4 Matter Fused 4 | . . 4 Heat Flow Errors 4 | . 2 2 Energy Discharges 2 | . 1 1 Data Loss (minor) 3 | . 1 2 Misfires 1 | . . 1 Overload Shots . | . . . Overflow Damage 41 | . 15 26 Projectiles . | . . . Explosions 41 | . 15 26 Melee . | . . . Knockbacks 5 | . . 5 Impact . | . . . Kinetic 5 | . . 5 Secondary . | . . . Self-Inflicted Damage 30 | . 30 . Shots 2 | . 2 . Rammed . | . . . Targets Rammed . | . . . Kicked . | . . . Crushed . | . . . Highest Temperature 283 | . 257 283 Average Temperature 51 | . 38 72 Received Heat Transfer 1335 | . 249 1086 Siege Activations . | . . . Robots Corrupted . | . . . Combat Hostiles . | . . . Parts Fried . | . . . Impact Corruptions . | . . . Robots Melted . | . . . Combat Hostiles . | . . . Parts Melted 1 | . 1 . Heat Transferred 1045 | . 400 645 Parts Sabotaged . | . . . Parts Stolen . | . . . Parts Stripped . | . . . Power Chain Reactions . | . . . Alert | -11 -10 -10 ------- Run | Yrd Mat Sub Peak Influence 301 | 15 301 . Initial 9 | . 9 . Average 167 | 5 176 . Maximum Alert Level 1 | . 1 . Low Security (%) 53 | 100 50 . Level 1 46 | . 49 . Level 2 . | . . . Level 3 . | . . . Level 4 . | . . . Level 5 . | . . . High Security . | . . . Max Security . | . . . Squads Dispatched 8 | . 8 . Investigation 5 | . 5 . Extermination . | . . . Reinforcement 3 | . 3 . Assault . | . . . Garrison . | . . . Intercept . | . . . Searches Triggered . | . . . Construction Impeded . | . . . Haulers Reinforced . | . . . Active Scanning Responses . | . . . Cargo Convoy Interrupts . | . . . Stealth | -11 -10 -10 --------- Run | Yrd Mat Sub Distress Signals . | . . . Communications Jammed . | . . . Distress Signals . | . . . Times Spotted 55 | . 33 22 Peak Tracking Total 5 | . 5 4 Tactical Retreats 2 | . . 2 Traps | -11 -10 -10 ------- Run | Yrd Mat Sub Traps Triggered 2 | . 2 . Indirectly . | . . . Trap Hack Attempts . | . . . Triggered . | . . . Disarmed . | . . . Reprogrammed . | . . . Reused . | . . . Traps Extracted . | . . . Installed . | . . . Triggered 1 | . . 1 Most Traps Carried 1 | . . 1 Machines | -11 -10 -10 ---------- Run | Yrd Mat Sub Machines Disabled 1 | . 1 . Max in Single Turn 1 | . 1 . Machines Repaired . | . . . Machines Dismantled . | . . . Machines Sabotaged . | . . . Overloaded Fab Kills . | . . . Hacking | -11 -10 -10 --------- Run | Yrd Mat Sub Machines Accessed 8 | . 7 1 Terminals 4 | . 4 . Fabricators . | . . . Repair Stations 1 | . 1 . Recycling Units 2 | . 2 . Scanalyzers . | . . . Garrison Access . | . . . Total Hacks 26 | . 24 2 Successful 12 | . 10 2 Failed 14 | . 14 . Catastrophic 1 | . 1 . Database Lockouts . | . . . Manual 12 | . 12 . Terminals 17 | . 17 . Fabricators . | . . . Repair Stations 2 | . 2 . Recycling Units 5 | . 5 . Scanalyzers . | . . . Garrison Access . | . . . Terminal Hacks 7 | . 5 2 Record 2 | . . 2 Part Schematic 1 | . 1 . Robot Analysis 2 | . 2 . Prototype ID Bank 2 | . 2 . Fabricator Hacks . | . . . Repair Station Hacks 1 | . 1 . Refit 1 | . 1 . Recycling Unit Hacks 2 | . 2 . Report Inventory 2 | . 2 . Scanalyzer . | . . . Garrison Access Hacks . | . . . Unauthorized Hacks 2 | . 2 . Terminals . | . . . Fabricators . | . . . Repair Stations . | . . . Recycling Units 2 | . 2 . Tunnel 2 | . 2 . Scanalyzers . | . . . Garrison Access . | . . . Data Cores Recovered . | . . . Used . | . . . Hacking Detections 6 | . 6 . Full Trace Events 2 | . 2 . Feedback Events . | . . . Feedback Blocked . | . . . Robot Schematics Acquired . | . . . Robots Built . | . . . Authchips . | . . . Time . | . . . Total Robot Build Rating . | . . . Part Schematics Acquired 1 | . 1 . Parts Built . | . . . Authchips . | . . . Time . | . . . Total Part Build Rating . | . . . Parts Repaired . | . . . Time . | . . . Parts Recycled . | . . . Recycled Matter . | . . . Retrieved Matter . | . . . Retrieved Components . | . . . Parts Scanalyzed . | . . . Part Schematics Acquired . | . . . Parts Damaged . | . . . Bothacking | -11 -10 -10 ------------ Run | Yrd Mat Sub Used RIF Installer . | . . . Robots Hacked . | . . . Non-combat . | . . . Combat . | . . . Robot Hacks Applied . | . . . Relay Couplers Released . | . . . Fabnet Peak Effective % . | . . . Robots Rewired . | . . . Allies Hacked . | . . . Hacks Repelled . | . . . Allies | -11 -10 -10 -------- Run | Yrd Mat Sub Total Allies . | . . . Largest Group . | . . . Highest-Rated Group . | . . . Highest-Rated Ally . | . . . Total Orders . | . . . Ally Attacks . | . . . Total Damage . | . . . Kills . | . . . Allies Corrupted . | . . . Allies Melted . | . . . Intel | -11 -10 -10 ------- Run | Yrd Mat Sub Robot Analysis Total 2 | . 2 . Derelict Logs Recovered 1 | . . 1 Drone Launches . | . . . Drone Recoveries . | . . . Exploration | -11 -10 -10 ------------- Run | Yrd Mat Sub Turns Passed 4057 | 89 1689 2279 Spaces Moved 1858 | 43 716 1099 Core 1 | 1 . . Treads . | . . . Legs . | . . . Wheels 1857 | 42 716 1099 Hover . | . . . Flight . | . . . Fastest Speed 50 | 50 95 150 Average Speed 172 | 90 191 163 Slowest Speed 215 | 95 215 215 Overloaded Moves . | . . . Propulsion Burnouts . | . . . Robots Hopped . | . . . Cave-ins Triggered . | . . . Exploration Rate (%) 51 | 4 94 57 Regions Visited 2 Branch Regions 1 Pre-discovered Areas 2 | . 2 . Known Exits Taken . | . . . Unknown Exits Taken 2 | 1 1 . Scrap Searched 3 | . . 3 Spaces Dug 16 | . 5 11 Terrain Destroyed 57 | . 15 42 Melee 7 | . . 7 Projectile 3 | . . 3 AOE 47 | . 15 32 Terrain Rammed . | . . . Walls Destroyed . | . . . Machines Disabled . | . . . Actions | -11 -10 -10 --------- Run | Yrd Mat Sub Total 2383 | 67 934 1382 Wait 214 | . 111 103 Move 1856 | 42 715 1099 Hop . | . . . Pick Up 37 | 4 19 14 Fast Attach 17 | 7 6 4 Attach 11 | . 1 10 Detach 3 | . 3 . Swap 23 | . 10 13 Drop 25 | . 9 16 Fire 158 | 14 60 84 Melee 39 | . . 39 Ram . | . . . Kick . | . . . Crush . | . . . Escape Stasis . | . . . Rewire . | . . . Trap . | . . . Miscellaneous . | . . . Route ------- -11/Scrapyard -10/Materials (discovered 5 exits: [*Mat x3] / [*Min] / *Sub) -10/Subcaves (discovered 2 exits: [*Mat x2]) History --------- Turn | Location | Event 9 | -11/Scrapyard | Discovered new exit (range 16) 90 | -11/Scrapyard | Entered Materials 310 | -10/Materials | Build established: Mutant 534 | -10/Materials | Discovered new exit (range 12) 624 | -10/Materials | Discovered new exit (range 15) 1059 | -10/Materials | Discovered new exit (range 13) 1337 | -10/Materials | Discovered new exit (range 8) 1769 | -10/Materials | Discovered new exit (range 6) 1779 | -10/Materials | Entered Subcaves 1807 | -10/Subcaves | Learned Materials stockpile data 1816 | -10/Subcaves | A swath of the cavern ceiling suddenly collapsed 1837 | -10/Subcaves | Visited Clippyterm 1882 | -10/Subcaves | Ambushed by Subdweller buried in earth 1911 | -10/Subcaves | Discovered new exit (range 11) 1954 | -10/Subcaves | Discovered new exit (range 11) 1960 | -10/Subcaves | Core integrity fell below 50% 2223 | -10/Subcaves | Shifting Twisted Machinery released Unknown Slashing Weapon 2529 | -10/Subcaves | Ambushed by angry Subdweller bent on revenge 3099 | -10/Subcaves | Shifting Twisted Machinery released Sub. Beam Cannon 3136 | -10/Subcaves | Shifting Twisted Machinery released Flamer 3713 | -10/Subcaves | Shifting Twisted Machinery released Multitool 3715 | -10/Subcaves | Shifting Twisted Machinery released Sub. Shrapnel Launcher 3759 | -10/Subcaves | Disturbed a concealed Subdweller 3795 | -10/Subcaves | Disturbed a concealed Subdweller 3798 | -10/Subcaves | Core integrity fell below 20% 4058 | -10/Subcaves | Destroyed by KN-1JE(R) with Subdweller Machine Gun Last Messages --------------- 03832_ Dropped Ion Engine. 03833_ Acquired Wheel. 03834_ Acquired 4 matter. 03837_ Dropped EM Pulse Gun. 03837_ Acquired Sub. Laser. 03838_ Acquired 6 matter. 03847_ Dropped Sub. Laser. 03847_ Acquired Sub. Laser. 03852_ Acquired 20 matter. 03916_ System corrupted: Matter fused (-7). 03927_ 4A-PPP(R) destroyed. 03930_ Acquired 7 matter. 03966_ System corrupted: Component data lost. 04037_ System corrupted: FCS attempts to trigger Sub. Laser. 04037_ System corrupted: Sub. Laser misfires. 04050_ KN-1JE(R) suffers critical hit (Destroy). 04056_ Sub. Beam Cannon shoots sparks and powers down. 04056_ Lgt. Treads destroyed. Map ----- +----------------------------------------------------+ | ?????????????????????????????????????????????????? | | ?????????????????????????????????????????????????? | | ?????????????????????????????????????????????????? | | ?????????????????????????????????????????????????? | | ?????????????????????????????????????????????????? | | ?????????????????????????????????????????????????? | | ?????????????????????????????????????????????????? | | ?????????????????????????????????????????????????? | | ?????????????????????????????????????????????????? | | ?????????????????????????????????????????????????? | | ?????????????????????????????????????????????????? | | ?????????????????????????????????????????????????? | | ?????????????????????????????????????????????????? | | ??????????????????????????????????????##?????????? | | ????????????????????????????????####?# #?????????? | | ???????????????????????????????##" ## #??????????? | | ??????????????????????????????##"" "#???????????? | | ??????????????????????????????# #????????????? | | ??????????????????????####????# ####????????????? | | ??????????????????????#" ##???# #???????????????? | | ??????????????????#???""""##??#" ##??????????????? | | ??????????????????# ??##"""##?#" ##?????????????? | | ??????????????????# ## """###" #?????????????? | | ????????????????### """ "" "##" #??####???????? | | ????????????????# " R" " "##### #???????? | | ???????????????# ##@####" "#"## #???????? | | ???????????" % ?###??##" """" #????????? | | ??????????" ??######## "" #????????? | | ?????????#" % """ "#### # # # # #????????? | | ?????????? " """"## #### #????????? | | ?????????? "?#""" ?## ## # #??# ##???????? | | ????????????? "#""" ##=&######## #??# #???????? | | ????????????? """ ##%&#????# ##?## ######??? | | ??????????????""""" *##????# ### [ #??? | | ??????????????# # "## ## #????# ##&## #??? | | ????????????????????###?##????# *!!%##?#??? | | ??????????????????????????????#### # &&&#????? | | ?????????????????????????????????### ## %#????? | | ???????????????????????????????????## #%[ #????? | | ????????????????????????????????????# # #####????? | | ????????????????????????????????????# # ?????? | | ????????????????????????????????????## ###???#### | | ????????????????????????????????????# #???# | | ????????????????????????????????????# #??## | | ????????????????????????????????????## ##?## | | ????????????????????????????????????## ### | | ????????????????????????????????????# #? | | ????????????????????????????????????## #?? | | ????????????????????????????????????## ### | | ????????????????????????????????????# ### # | +----------------------------------------------------+ Best States ------------- Heat Dissipation 25 Energy Generation 15 Energy Capacity 250 Matter Stores 300 Matter Capacity 300 Sight Range 16 Terrain Scan Range 16 Terrain Scan Density 10 Armor Coverage 150 Evasion (%) 44 Recoil Reduction 1 Item Schematics ----------------- Huge Storage Unit | -10/Materials | Hacked Robot Schematics ------------------ None Fabricated ------------ Nothing Alien Tech Used ----------------- None Achievements -------------- None Challenges ------------ None Game ------ Seed ColdModifiedMapper Manual? 0 Play Time 00:32:17 Cumulative 772.2 hours Start 2024.05.25 @ 14:29:13 End 2024.05.27 @ 22:15:33 Sessions 3 Manual Loads 0 Difficulty Rogue Special Mode None Game No. 322 Rogue 292 Adventurer 3 Explorer 27 Win Type - Total 17 Types 10/3/2/1/0/1/0/0/0 Lore% 92 Gallery% 97 Achievement% 86 Wizard Run 0 Options --------- Layout 2 ASCII 0 Keyboard 0 Movement Numpad Keybinds 0 Fullscreen 2 Font 24/Smallcaps Map View 50x44 Zoom Use 0% Tactical HUD 1 Map Filters NONE Filters NONE Steam 1 RUN: b4ede201-d998-44ac-9147-246b110d150c